bitfinex/quotes_BTCUSD_20250526
["timestamp","ask_amount","ask_price","bid_price","bid_amount"]
[1748256883049,2.45787848,109590.0,109580.0,3.68919384]
[1748256883228,2.40787848,109590.0,109580.0,3.68189842]
[1748256883465,2.45787848,109590.0,109580.0,3.68189842]
[1748256883685,2.45787848,109590.0,109580.0,3.674603]
[1748256884015,2.10238012,109590.0,109580.0,3.66730758]
[1748256884450,2.10238012,109590.0,109580.0,2.31169399]
[1748256884678,0.94060899,109590.0,109580.0,2.31169399]
[1748256884922,2.28651824,109590.0,109580.0,2.30439684]
[1748256885167,2.33651824,109590.0,109580.0,2.30439684]
[1748256885597,1.92014851,109590.0,109580.0,2.29709969]
[1748256885816,1.97014851,109590.0,109580.0,2.29709969]
[1748256886049,1.97014851,109590.0,109580.0,2.28980254]
[1748256886305,2.33651824,109590.0,109580.0,2.28980254]
[1748256886416,2.33651824,109590.0,109580.0,2.28250539]
[1748256887155,2.33655824,109590.0,109580.0,2.28250539]
[1748256887602,1.97018851,109590.0,109580.0,2.28250539]
[1748256888495,2.33655824,109590.0,109580.0,2.28250539]
[1748256888743,1.18744905,109590.0,109580.0,2.28250539]
[1748256889013,1.95234544,109590.0,109580.0,2.28250539]
[1748256889241,1.31060598,109590.0,109580.0,2.28250539]
[1748256889450,2.04334544,109590.0,109580.0,2.28250539]
[1748256890716,1.98040213,109590.0,109580.0,2.28250539]
[1748256891595,2.03514213,109590.0,109580.0,2.28250539]
[1748256892695,2.01255906,109590.0,109580.0,2.28250539]
[1748256894273,2.43366879,109590.0,109580.0,2.28250539]
[1748256894512,2.43366879,109590.0,109580.0,1.88641219]
[1748256894783,1.3345596,109590.0,109580.0,1.88641219]
[1748256894999,2.06729906,109590.0,109580.0,1.88641219]
[1748256895442,2.47535067,109590.0,109580.0,1.88641219]
[1748256896104,2.10898094,109590.0,109580.0,1.88641219]
[1748256896537,2.47535067,109590.0,109580.0,1.88641219]
[1748256896788,2.38435067,109590.0,109580.0,1.88641219]
[1748256897240,2.58917374,109590.0,109580.0,1.46581201]
[1748256897456,2.58917374,109590.0,109580.0,1.45018735]
[1748256897863,2.58917374,109590.0,109580.0,1.44288987]
[1748256898072,2.58217374,109590.0,109580.0,1.44188987]
[1748256898277,2.58217374,109590.0,109580.0,1.43459239]
[1748256898496,2.64472243,109590.0,109580.0,1.43559239]
[1748256898723,2.64472243,109590.0,109580.0,1.42829491]
[1748256898951,3.34472243,109590.0,109580.0,1.42829491]
[1748256899169,3.3158573,109590.0,109580.0,1.42099743]
[1748256899394,2.98441374,109590.0,109580.0,1.42099743]
[1748256899600,3.28621374,109590.0,109580.0,1.41269995]
[1748256899802,2.83584401,109590.0,109580.0,1.40640247]
[1748256900008,2.52804401,109590.0,109580.0,1.40640247]
[1748256900259,2.83584401,109590.0,109580.0,1.40640247]
[1748256900803,2.73986401,109590.0,109580.0,1.40640247]
[1748256901009,2.43206401,109590.0,109580.0,1.40640247]
[1748256901233,2.73986401,109590.0,109580.0,1.40640247]
[1748256902314,2.03986401,109590.0,109580.0,1.40640247]
[1748256902854,1.30712455,109590.0,109580.0,1.40640247]
[1748256903082,2.02612401,109590.0,109580.0,1.40640247]
[1748256904207,1.71832401,109590.0,109580.0,1.40640247]
[1748256904427,2.02612401,109590.0,109580.0,1.40640247]
[1748256904655,2.02612401,109590.0,109580.0,1.38501769]
[1748256904898,1.71832401,109590.0,109580.0,1.38501769]
[1748256905113,2.02612401,109590.0,109580.0,1.38501769]
[1748256905313,2.01704034,109590.0,109580.0,1.38501769]
[1748256906616,2.07178034,109590.0,109580.0,1.38501769]
[1748256906903,2.01704034,109590.0,109580.0,1.38501769]
[1748256907600,0.92350088,109590.0,109580.0,1.38501769]
[1748256907819,1.63987061,109590.0,109580.0,1.38501769]
[1748256908040,1.62987061,109590.0,109580.0,1.38501769]
[1748256908261,1.63987061,109590.0,109580.0,1.38501769]
[1748256908498,1.29125067,109590.0,109580.0,1.38501769]
[1748256908721,1.5870208,109590.0,109580.0,1.40691769]
[1748256908941,1.22065107,109590.0,109580.0,1.40691769]
[1748256909185,1.5870208,109590.0,109580.0,1.40691769]
[1748256909636,1.6414208,109590.0,109580.0,1.38501769]
[1748256909862,2.00779053,109590.0,109580.0,1.38501769]
[1748256910490,2.01871047,109590.0,109580.0,1.38501769]
[1748256911284,1.71092603,109590.0,109580.0,1.38501769]
[1748256911491,1.64139636,109590.0,109580.0,1.38501769]
[1748256911762,1.67358138,109590.0,109580.0,1.38501769]
[1748256913391,1.30721165,109590.0,109580.0,1.38501769]
[1748256913665,1.67358138,109590.0,109580.0,1.38501769]
[1748256913866,1.58258138,109590.0,109580.0,1.38501769]
[1748256914067,1.55968138,109590.0,109580.0,1.38501769]
[1748256914293,1.52749636,109590.0,109580.0,1.38501769]
[1748256914482,1.54909636,109590.0,109580.0,1.38501769]
[1748256915293,1.5600163,109590.0,109580.0,1.38501769]
[1748256918002,1.55971256,109590.0,109580.0,1.38501769]
[1748256918854,1.65071256,109590.0,109580.0,1.38501769]
[1748256921633,1.62911256,109590.0,109580.0,1.38501769]
[1748256922233,1.23124283,109590.0,109580.0,1.40791769]
[1748256923227,1.27032289,109590.0,109580.0,1.40791769]
[1748256923631,1.22032289,109590.0,109580.0,1.40791769]
[1748256924639,1.12932289,109590.0,109580.0,1.40791769]
[1748256925378,1.12932289,109590.0,109580.0,1.38501769]
[1748256925379,1.51699262,109590.0,109580.0,1.38501769]
[1748256925975,1.51699262,109590.0,109580.0,1.36363729]
[1748256929526,1.60799262,109590.0,109580.0,1.36363729]
[1748256932269,1.61891256,109590.0,109580.0,1.36363729]
[1748256933504,1.64591256,109590.0,109580.0,1.36363729]
[1748256935283,1.61891256,109590.0,109580.0,1.36363729]
[1748256935485,1.62801462,109590.0,109580.0,1.36363729]
[1748256935692,1.65611462,109590.0,109580.0,1.36363729]
[1748256936311,1.67065643,109590.0,109580.0,1.36363729]
[1748256936986,1.36289643,109590.0,109580.0,1.36363729]
[1748256937196,1.67277643,109590.0,109580.0,1.36363729]
[1748256937390,1.7146614,109590.0,109580.0,1.36363729]
[1748256937528,1.70374146,109590.0,109580.0,1.33614727]
[1748256939020,1.68919965,109590.0,109580.0,1.33614727]
[1748256939220,1.66109965,109590.0,109580.0,1.33614727]
[1748256939854,1.67204228,109590.0,109580.0,1.33614727]
[1748256940062,1.69974228,109590.0,109580.0,1.33614727]
[1748256941189,1.67204228,109590.0,109580.0,1.33614727]
[1748256941430,1.63015731,109590.0,109580.0,1.33614727]
[1748256944798,1.26378758,109590.0,109580.0,1.33614727]
[1748256945014,1.63015731,109590.0,109580.0,1.33614727]
[1748256947058,1.63015731,109590.0,109580.0,1.31476601]
[1748256947464,1.63015731,109590.0,109580.0,1.13163873]
[1748256947804,1.68489731,109590.0,109580.0,1.13163873]
[1748256948142,1.63015731,109590.0,109580.0,1.13163873]
[1748256949752,1.53915731,109590.0,109580.0,1.13163873]
[1748256949930,1.56762784,109590.0,109580.0,1.13163873]
[1748256953662,0.48706673,109590.0,109580.0,1.52357899]
[1748256953878,1.03910673,109590.0,109580.0,1.55227899]
[1748256954094,1.14567673,109590.0,109580.0,1.55227899]
[1748256954302,1.13263204,109590.0,109580.0,1.55227899]
[1748256954514,1.00121289,109590.0,109580.0,1.55227899]
[1748256954731,0.83017289,109590.0,109580.0,1.55027899]
[1748256954936,1.13017289,109590.0,109580.0,1.55127899]
[1748256955083,1.13617289,109590.0,109580.0,1.55127899]
[1748256955284,0.51463204,109590.0,109580.0,1.55127899]
[1748256955519,0.66059204,109590.0,109580.0,1.55127899]
[1748256955730,0.67513289,109590.0,109580.0,1.55127899]
[1748256955927,0.67813289,109590.0,109580.0,1.55113241]
[1748256956495,0.66640549,109590.0,109580.0,1.55113241]
[1748256956731,0.52244549,109590.0,109580.0,1.55113241]
[1748256956933,0.52244549,109590.0,109580.0,1.55013241]
[1748256956934,0.66240549,109590.0,109580.0,1.55013241]
[1748256957142,0.66740549,109590.0,109580.0,1.55113241]
[1748256957476,0.96740549,109590.0,109580.0,1.39926116]
[1748256957829,0.99970577,109590.0,109580.0,1.39926116]
[1748256958069,1.20870577,109590.0,109580.0,1.39926116]
[1748256958190,0.90870577,109590.0,109580.0,1.39926116]
[1748256958391,1.04820492,109590.0,109580.0,1.39926116]
[1748256958642,1.19416492,109590.0,109580.0,1.39926116]
[1748256958995,1.25342693,109590.0,109580.0,1.39926116]
[1748256959215,1.19416492,109590.0,109580.0,1.39926116]
[1748256960221,1.19416492,109590.0,109580.0,1.03316748]
[1748256961681,1.19416492,109590.0,109580.0,0.84170285]
[1748256962860,1.04820492,109590.0,109580.0,0.84170285]
[1748256963046,1.19412492,109590.0,109580.0,1.20779653]
[1748256964850,0.89412492,109590.0,109580.0,1.20779653]
[1748256965071,0.89412492,109590.0,109580.0,0.84170285]
[1748256965314,0.74820492,109590.0,109580.0,0.84170285]
[1748256965552,0.89412492,109590.0,109580.0,0.84170285]
[1748256965762,0.8310627,109590.0,109580.0,0.84170285]
[1748256970140,0.8310627,109590.0,109580.0,1.20779653]
[1748256971360,0.8310627,109590.0,109580.0,1.17909653]
[1748256971562,0.8310627,109590.0,109580.0,0.81300285]
[1748256972824,1.27129723,109590.0,109580.0,0.78730285]
[1748256973465,1.32129723,109590.0,109580.0,0.78730285]
[1748256973778,1.34868223,109590.0,109580.0,0.78730285]
[1748256974003,1.35741389,109590.0,109580.0,0.78730285]
[1748256976384,1.3882618,109590.0,109580.0,0.78730285]
[1748256976806,1.3882618,109590.0,109580.0,0.76592299]
[1748256979262,1.4792618,109590.0,109580.0,0.76592299]
[1748256981479,1.54535548,109590.0,109580.0,0.76592299]
[1748256981711,1.88535548,109590.0,109580.0,0.76592299]
[1748256982860,1.5192618,109590.0,109580.0,0.76592299]
[1748256986263,1.15316812,109590.0,109580.0,0.76592299]
[1748256986467,1.5192618,109590.0,109580.0,0.76592299]
[1748256987548,1.6787418,109590.0,109580.0,0.76592299]
[1748256988625,2.04483548,109590.0,109580.0,0.76592299]
[1748256989312,1.31268812,109590.0,109580.0,0.76592299]
[1748256989533,2.04487548,109590.0,109580.0,0.76592299]
[1748256990058,1.6787818,109590.0,109580.0,0.76592299]
[1748256991059,2.00487548,109590.0,109580.0,0.76592299]
[1748256991674,2.05961548,109590.0,109580.0,0.76592299]
[1748256992075,2.07055811,109590.0,109580.0,0.76592299]
[1748256993245,2.06055811,109590.0,109580.0,0.76592299]
[1748256993886,2.0861634,109590.0,109580.0,0.76592299]
[1748256994318,2.10070521,109590.0,109580.0,0.76592299]
[1748256994707,2.14259018,109590.0,109580.0,0.76592299]
[1748256995121,2.23857018,109590.0,109580.0,0.76592299]
[1748256995321,2.20202226,109590.0,109580.0,0.73843253]
[1748256995899,2.20202226,109590.0,109580.0,0.5574213]
[1748256996500,2.18748045,109590.0,109580.0,0.5574213]
[1748256997383,2.18653611,109590.0,109580.0,0.5574213]
[1748256997687,2.19746021,109590.0,109580.0,0.53603859]
[1748256998531,2.10646021,109590.0,109580.0,0.53603859]
[1748256999402,1.79604021,109590.0,109580.0,0.53603859]
[1748256999603,2.16078222,109590.0,109580.0,0.53603859]
[1748256999806,2.07057958,109590.0,109580.0,0.53603859]
[1748257000037,1.19243222,109590.0,109580.0,0.53603859]
[1748257000247,1.71344505,109590.0,109580.0,0.53603859]
[1748257000457,1.68534505,109590.0,109580.0,0.53603859]
[1748257000665,1.6998859,109590.0,109580.0,0.53603859]
[1748257000873,1.6898859,109590.0,109580.0,0.53603859]
[1748257001303,1.6289618,109590.0,109580.0,0.53603859]
[1748257001510,1.25420095,109590.0,109580.0,0.56363859]
[1748257001721,1.55968095,109590.0,109580.0,0.56363859]
[1748257001915,1.60968095,109590.0,109580.0,0.56363859]
[1748257002808,1.6242218,109590.0,109580.0,0.56363859]
[1748257004038,1.5332218,109590.0,109580.0,0.56363859]
[1748257005162,1.16712812,109590.0,109580.0,0.56363859]
[1748257005383,1.5332218,109590.0,109580.0,0.56363859]
[1748257006966,1.4941459,109590.0,109580.0,0.56363859]
[1748257007090,1.5441459,109590.0,109580.0,0.53603859]
[1748257007300,1.4941459,109590.0,109580.0,0.53603859]
[1748257007536,1.5220459,109590.0,109580.0,0.53603859]
[1748257009021,1.6130459,109590.0,109580.0,0.53603859]
[1748257009242,1.6549679,109590.0,109580.0,0.53603859]
[1748257009408,1.6819679,109590.0,109580.0,0.53603859]
[1748257010040,1.31587422,109590.0,109580.0,0.53603859]
[1748257010266,1.6549679,109590.0,109580.0,0.53603859]
[1748257010465,1.6270679,109590.0,109580.0,0.53603859]
[1748257012821,1.6770679,109590.0,109580.0,0.53603859]
[1748257013940,1.6270679,109590.0,109580.0,0.53603859]
[1748257017652,1.6844679,109590.0,109580.0,0.53603859]
[1748257017805,1.71008815,109590.0,109580.0,0.53603859]
[1748257018067,1.6844679,109590.0,109580.0,0.53603859]
[1748257018228,1.6844679,109590.0,109580.0,0.51465785]
[1748257019235,2.05896158,109590.0,109580.0,0.51465785]
[1748257019579,1.6928679,109590.0,109580.0,0.51465785]
[1748257019921,1.73380853,109590.0,109580.0,0.51465785]
[1748257021697,1.5599459,109590.0,109580.0,0.51465785]
[1748257022748,1.5499459,109590.0,109580.0,0.51465785]
[1748257022954,1.1886659,109590.0,109580.0,0.51465785]
[1748257023163,1.5829459,109590.0,109580.0,0.51465785]
[1748257025408,1.21685222,109590.0,109580.0,0.51465785]
[1748257025618,1.5829459,109590.0,109580.0,0.51465785]
[1748257026278,1.8829459,109590.0,109580.0,0.54415785]
[1748257026909,1.8829459,109590.0,109580.0,0.51465785]
[1748257027922,1.7919459,109590.0,109580.0,0.51465785]
[1748257028506,1.8701459,109590.0,109580.0,0.51465785]
[1748257028715,1.8201459,109590.0,109580.0,0.51465785]
[1748257029096,1.8701459,109590.0,109580.0,0.51465785]
[1748257029306,1.50405222,109590.0,109580.0,0.51465785]
[1748257029538,1.8701459,109590.0,109580.0,0.51465785]
[1748257029759,1.8419459,109590.0,109580.0,0.51465785]
[1748257029970,1.85648771,109590.0,109580.0,0.51465785]
[1748257031443,1.93935034,109590.0,109580.0,0.51465785]
[1748257032485,1.52325666,109590.0,109580.0,0.51465785]
[1748257032725,1.91498507,109590.0,109580.0,0.51465785]
[1748257033046,2.00598507,109590.0,109580.0,0.51465785]
[1748257033895,2.08428507,109590.0,109580.0,0.51465785]
[1748257034300,2.05865034,109590.0,109580.0,0.51465785]
[1748257034510,2.08429269,109590.0,109580.0,0.51465785]
[1748257035068,2.1435547,109590.0,109580.0,0.51465785]
[1748257035224,2.06975088,109590.0,109580.0,0.51465785]
[1748257035991,2.0698603,109590.0,109580.0,0.51465785]
[1748257036188,2.08440211,109590.0,109580.0,0.51465785]
[1748257037241,1.71819901,109590.0,109580.0,0.51465785]
[1748257037475,2.08440211,109590.0,109580.0,0.51465785]
[1748257040456,2.08440211,109590.0,109580.0,0.4932774]
[1748257040618,2.05875976,109590.0,109580.0,0.4932774]
[1748257041021,2.00875976,109590.0,109580.0,0.4932774]
[1748257041224,1.86279976,109590.0,109580.0,0.4932774]
[1748257041434,2.00875976,109590.0,109580.0,0.4932774]
[1748257041633,1.99421795,109590.0,109580.0,0.4932774]
[1748257041956,1.90321795,109590.0,109580.0,0.4932774]
[1748257042149,1.90321795,109590.0,109580.0,0.273011]
[1748257042514,1.87491795,109590.0,109580.0,0.273011]
[1748257043018,1.86399385,109590.0,109580.0,0.273011]
[1748257044258,1.83560885,109590.0,109580.0,0.273011]
[1748257044656,1.25812575,109590.0,109580.0,0.300811]
[1748257044866,1.25812575,109590.0,109580.0,0.328811]
[1748257044867,1.47754312,109590.0,109580.0,0.328811]
[1748257045068,1.89374622,109590.0,109580.0,0.328811]
[1748257045264,1.89374622,109590.0,109580.0,0.300811]
[1748257045713,1.89374622,109590.0,109580.0,0.273011]
[1748257046871,1.84374622,109590.0,109580.0,0.273011]
[1748257047081,1.89374622,109590.0,109580.0,0.273011]
[1748257052440,1.90467032,109590.0,109580.0,0.273011]
[1748257055312,1.94659232,109590.0,109580.0,0.273011]
[1748257058827,1.97459232,109590.0,109580.0,0.273011]
[1748257059776,1.94659232,109590.0,109580.0,0.273011]
[1748257060850,2.00129232,109590.0,109580.0,0.273011]
[1748257061260,1.97379232,109590.0,109580.0,0.273011]
[1748257062210,1.93187032,109590.0,109580.0,0.273011]
[1748257062823,1.93187032,109590.0,109580.0,0.25163139]
[1748257064324,1.97379232,109590.0,109580.0,0.25163139]
[1748257064531,1.96286822,109590.0,109580.0,0.25163139]
[1748257066473,1.92094622,109590.0,109580.0,0.25163139]
[1748257069097,1.77498622,109590.0,109580.0,0.25163139]
[1748257069310,1.47754312,109590.0,109580.0,0.25163139]
[1748257069529,1.84374622,109590.0,109580.0,0.27873139]
[1748257069992,1.03158312,109590.0,109580.0,1.03943759]
[1748257070212,0.97204227,109590.0,109580.0,1.03943759]
[1748257070432,1.01800227,109590.0,109580.0,1.03943759]
[1748257071103,1.00927061,109590.0,109580.0,1.03943759]
[1748257072009,1.00427061,109590.0,109580.0,1.03843759]
[1748257072227,0.91227061,109590.0,109580.0,1.03843759]
[1748257072444,0.91427061,109590.0,109580.0,0.30703139]
[1748257072657,0.91427061,109590.0,109580.0,1.03943759]
[1748257072872,0.91227061,109590.0,109580.0,1.03943759]
[1748257073060,0.91327061,109590.0,109580.0,1.03943759]
[1748257073758,0.61199061,109590.0,109580.0,1.03943759]
[1748257073983,0.91323061,109590.0,109580.0,0.67308881]
[1748257074642,0.8823827,109590.0,109580.0,0.67308881]
[1748257074859,0.94164471,109590.0,109580.0,0.67308881]
[1748257075102,0.8823827,109590.0,109580.0,0.67308881]
[1748257076058,0.91466171,109590.0,109580.0,0.67308881]
[1748257076266,0.91466171,109590.0,109580.0,0.30703139]
[1748257076478,0.91466171,109590.0,109580.0,0.67308881]
[1748257078083,0.94552391,109590.0,109580.0,0.67308881]
[1748257078787,0.64428391,109590.0,109580.0,0.67308881]
[1748257078963,0.94552391,109590.0,109580.0,0.67308881]
[1748257081724,0.94552391,109590.0,109580.0,0.30703139]
[1748257082172,0.79960391,109590.0,109580.0,0.67308881]
[1748257082372,0.94552391,109590.0,109580.0,0.67308881]
[1748257082628,0.95552391,109590.0,109580.0,0.67308881]
[1748257086935,0.95552391,109590.0,109580.0,0.30703139]
[1748257087337,0.95552391,109590.0,109580.0,0.67308881]
[1748257087764,0.95552391,109590.0,109580.0,0.30703139]
[1748257087934,0.95552391,109590.0,109580.0,0.67308881]
[1748257088902,0.80960391,109590.0,109580.0,0.67308881]
[1748257089102,0.95552391,109590.0,109580.0,0.67308881]
[1748257089628,0.80960391,109590.0,109580.0,0.67308881]
[1748257089783,0.95552391,109590.0,109580.0,0.67308881]
[1748257093343,0.95552391,109590.0,109580.0,0.46178152]
[1748257093594,0.95552391,109590.0,109580.0,0.43348152]
[1748257093996,0.95552391,109590.0,109580.0,0.43348979]
[1748257097295,0.8923827,109590.0,109580.0,0.43348979]
[1748257099547,0.8923827,109590.0,109580.0,0.79955548]
[1748257103074,0.8923827,109590.0,109580.0,0.43348979]
[1748257103511,0.8923827,109590.0,109580.0,0.79955548]
[1748257103995,0.90111436,109590.0,109580.0,0.79955548]
[1748257104327,0.75519436,109590.0,109580.0,0.79955548]
[1748257104533,0.90111436,109590.0,109580.0,0.79955548]
[1748257104977,0.59987436,109590.0,109580.0,0.82715548]
[1748257105146,0.90111436,109590.0,109580.0,0.82715548]
[1748257105931,0.89371188,109590.0,109580.0,0.82715548]
[1748257106133,0.58174022,109590.0,109580.0,0.82615548]
[1748257106331,0.72966022,109590.0,109580.0,0.82615548]
[1748257106539,0.42966022,109590.0,109580.0,0.82615548]
[1748257107660,0.42966022,109590.0,109580.0,0.91567699]
[1748257115841,0.42966022,109590.0,109580.0,0.74598726]
[1748257119315,0.42966022,109590.0,109580.0,0.71838726]
[1748257120277,0.19164063,109580.0,109570.0,0.57979171]
[1748257120502,0.19164063,109580.0,109570.0,1.31192309]
[1748257120720,0.28118619,109580.0,109570.0,0.39726]
[1748257120928,0.31028619,109580.0,109570.0,0.70612569]
[1748257121553,0.31028619,109580.0,109570.0,1.07219138]
[1748257121554,0.31128619,109580.0,109570.0,1.07219138]
[1748257122601,0.31128619,109580.0,109570.0,1.07319138]
[1748257127371,0.31128619,109580.0,109570.0,0.70712569]
[1748257129487,0.28218619,109580.0,109570.0,0.70712569]
[1748257130242,0.28218619,109580.0,109570.0,1.07319138]
[1748257130723,0.28218619,109580.0,109570.0,1.10578563]
[1748257133047,0.42810619,109580.0,109570.0,1.10578563]
[1748257138385,0.28218619,109580.0,109570.0,1.10578563]
[1748257138574,0.42810619,109580.0,109570.0,1.10578563]
[1748257148127,0.42810619,109580.0,109570.0,1.07319138]
[1748257151870,0.45580619,109580.0,109570.0,1.07319138]
[1748257154945,0.48370619,109580.0,109570.0,1.07319138]
[1748257156466,0.45580619,109580.0,109570.0,1.07319138]
[1748257161291,0.42810619,109580.0,109570.0,1.07319138]
[1748257162258,0.42810619,109580.0,109570.0,1.16271289]
[1748257162470,0.42810619,109580.0,109570.0,1.07319138]
[1748257162670,0.45600619,109580.0,109570.0,1.07319138]
[1748257162977,0.31008619,109580.0,109570.0,1.07319138]
[1748257163155,0.45600619,109580.0,109570.0,1.07319138]
[1748257163456,0.42810619,109580.0,109570.0,1.07319138]
[1748257164999,0.42810619,109580.0,109570.0,0.73313138]
[1748257165161,0.42810619,109580.0,109570.0,0.82265289]
[1748257167283,0.45590619,109580.0,109570.0,0.82265289]
[1748257171465,0.01,109600.0,109590.0,0.00912492]
[1748257171692,0.03737125,109600.0,109590.0,1.18147108]
[1748257171902,0.03737125,109600.0,109590.0,1.08742562]
[1748257171903,0.21985284,109600.0,109590.0,1.08742562]
[1748257172327,0.21985284,109600.0,109590.0,1.03152562]
[1748257172504,0.22897684,109600.0,109590.0,1.03152562]
[1748257172737,0.22997684,109600.0,109590.0,1.04065004]
[1748257172941,0.23910092,109600.0,109590.0,1.04065004]
[1748257173147,0.22897742,109600.0,109590.0,1.04065004]
[1748257173327,0.22897742,109600.0,109590.0,1.03152562]
[1748257173539,0.22997742,109600.0,109590.0,1.04974702]
[1748257173954,0.22997742,109600.0,109590.0,1.04933202]
[1748257174566,0.03837159,109600.0,109590.0,1.05845644]
[1748257174767,0.03837159,109600.0,109590.0,1.05845585]
[1748257174980,0.03837159,109600.0,109590.0,1.08115895]
[1748257175414,0.22997742,109600.0,109590.0,1.07203462]
[1748257175821,0.22997742,109600.0,109590.0,1.41203462]
[1748257176206,0.22997742,109600.0,109590.0,1.38223462]
[1748257176663,0.04749567,109600.0,109590.0,1.38223462]
[1748257176868,0.22085334,109600.0,109590.0,1.39135895]
[1748257177071,0.22085334,109600.0,109590.0,1.38223462]
[1748257177271,0.22085334,109600.0,109590.0,1.3731102]
[1748257177510,0.22085334,109600.0,109590.0,1.38223462]
[1748257177683,0.22085334,109600.0,109590.0,1.3731102]
[1748257178038,0.22085334,109600.0,109590.0,1.38223453]
[1748257178241,0.22997742,109600.0,109590.0,1.37311037]
[1748257178446,0.22997742,109600.0,109590.0,1.38223479]
[1748257179515,0.22997742,109600.0,109590.0,1.36398587]
[1748257179727,0.22085375,109600.0,109590.0,1.38223504]
[1748257180453,0.22085375,109600.0,109590.0,1.39135946]
[1748257180939,0.35947539,109600.0,109590.0,0.002]
[1748257181193,0.50535539,109600.0,109590.0,0.36785819]
[1748257181890,0.50535539,109600.0,109590.0,0.73371638]
[1748257187596,0.50535539,109600.0,109590.0,0.36785819]
[1748257190024,0.50535539,109600.0,109590.0,0.002]
[1748257190231,0.50535539,109600.0,109590.0,0.36785819]
[1748257194722,0.50535539,109600.0,109590.0,0.40464401]
[1748257195143,0.50535539,109600.0,109590.0,0.36785819]
[1748257202172,0.50535539,109600.0,109590.0,0.18656102]
[1748257206609,0.20989104,109580.0,109570.0,0.76071631]
[1748257206869,0.20989104,109580.0,109570.0,1.12672383]
[1748257207446,0.20989104,109580.0,109570.0,1.11759775]
[1748257207652,0.20989104,109580.0,109570.0,1.20711926]
[1748257207855,0.21089104,109580.0,109570.0,1.21111926]
[1748257208107,0.21089104,109580.0,109570.0,1.57714349]
[1748257208374,0.21189104,109580.0,109570.0,1.58114349]
[1748257208589,0.21189104,109580.0,109570.0,1.59939557]
[1748257208793,0.2210167,109580.0,109570.0,1.59939557]
[1748257208995,0.23014245,109580.0,109570.0,1.59026957]
[1748257209401,0.23014245,109580.0,109570.0,1.59939557]
[1748257211607,0.02937599,109580.0,109570.0,1.59939557]
[1748257211818,0.02025041,109580.0,109570.0,1.59939557]
[1748257212019,0.03850149,109580.0,109570.0,1.59939557]
[1748257212192,0.02937591,109580.0,109570.0,1.59939557]
[1748257212369,0.03850149,109580.0,109570.0,1.59939557]
[1748257212771,0.002,109580.0,109570.0,1.96533678]
[1748257216106,0.002,109580.0,109570.0,1.59920921]
[1748257217340,0.02025041,109580.0,109570.0,1.23336118]
[1748257217760,0.02937565,109580.0,109570.0,1.23336118]
[1748257218187,0.02937557,109580.0,109570.0,1.23336118]
[1748257218770,0.03850098,109580.0,109570.0,1.23336118]
[1748257220883,0.04762648,109580.0,109570.0,1.23336118]
[1748257221482,0.04762648,109580.0,109570.0,1.08748118]
[1748257221688,0.04762698,109580.0,109570.0,1.23336118]
[1748257224449,0.0385014,109580.0,109570.0,1.23336118]
[1748257224653,0.04762698,109580.0,109570.0,1.23336118]
[1748257227356,0.04762698,109580.0,109570.0,1.20606118]
[1748257227566,0.23014203,109580.0,109570.0,1.20606118]
[1748257227997,0.04762698,109580.0,109570.0,1.20606118]
[1748257228275,0.23014203,109580.0,109570.0,1.20606118]
[1748257228479,0.23014253,109580.0,109570.0,1.20606118]
[1748257229426,0.04762748,109580.0,109570.0,1.20606118]
[1748257231881,0.04762748,109580.0,109570.0,1.17756118]
[1748257232365,0.011125,109580.0,109570.0,1.17756118]
[1748257234219,0.02025008,109580.0,109570.0,1.17756118]
[1748257234615,0.011125,109580.0,109570.0,1.17756118]
[1748257234764,0.02025016,109580.0,109570.0,1.17756118]
[1748257235126,0.011125,109580.0,109570.0,1.17756118]
[1748257235295,0.02025016,109580.0,109570.0,1.17756118]
[1748257235536,0.011125,109580.0,109570.0,1.17756118]
[1748257235947,0.02025016,109580.0,109570.0,1.54355043]
[1748257236555,0.011125,109580.0,109570.0,1.54355043]
[1748257236774,0.02025016,109580.0,109570.0,1.54355043]
[1748257242687,0.02937549,109580.0,109570.0,1.54355043]
[1748257243636,0.02025016,109580.0,109570.0,1.54355043]
[1748257247129,0.02937541,109580.0,109570.0,1.54355043]
[1748257248442,0.05847541,109580.0,109570.0,1.54355043]
[1748257248819,0.02937541,109580.0,109570.0,1.54355043]
[1748257249479,0.011125,109580.0,109570.0,1.54355043]
[1748257254579,0.002,109580.0,109570.0,1.54355043]
[1748257255295,0.01112516,109580.0,109570.0,1.54355043]
[1748257257833,0.04152516,109580.0,109570.0,1.54355043]
[1748257260030,0.04152516,109580.0,109570.0,1.39767043]
[1748257260229,0.04152516,109580.0,109570.0,1.54355043]
[1748257260830,0.0324,109580.0,109570.0,1.54355043]
[1748257261030,0.04152508,109580.0,109570.0,1.39767043]
[1748257261234,0.04152508,109580.0,109570.0,1.54355043]
[1748257264914,0.05065033,109580.0,109570.0,0.81171315]
[1748257265128,0.04152508,109580.0,109570.0,1.54355043]
[1748257271444,0.05065033,109580.0,109570.0,1.54355043]
[1748257272662,0.04152508,109580.0,109570.0,1.54355043]
[1748257273683,0.05065024,109580.0,109570.0,1.54355043]
[1748257274493,0.05065024,109580.0,109570.0,0.81171315]
[1748257274875,0.05065024,109580.0,109570.0,1.54355043]
[1748257277351,0.05977549,109580.0,109570.0,1.54355043]
[1748257279678,0.05065024,109580.0,109570.0,1.54355043]
[1748257280353,0.07935024,109580.0,109570.0,1.54355043]
[1748257285070,0.07935024,109580.0,109570.0,1.324293]
[1748257286181,0.07935024,109580.0,109570.0,1.20355043]
[1748257288289,0.08847549,109580.0,109570.0,1.20355043]
[1748257291572,0.08847549,109580.0,109570.0,0.99356746]
[1748257291779,0.08847549,109580.0,109570.0,1.17609862]
[1748257292075,0.08847549,109580.0,109570.0,1.20347769]
[1748257292594,0.09760082,109580.0,109570.0,1.20347769]
[1748257294134,0.09760082,109580.0,109570.0,1.23085069]
[1748257296035,0.10672623,109580.0,109570.0,1.23085069]
[1748257296370,0.09760115,109580.0,109570.0,1.23085069]
[1748257296555,0.09760115,109580.0,109570.0,1.08497069]
[1748257296770,0.09760115,109580.0,109570.0,1.23085069]
[1748257299515,0.10672673,109580.0,109570.0,1.23085069]
[1748257305820,0.09760115,109580.0,109570.0,1.23085069]
[1748257306011,0.10672673,109580.0,109570.0,1.23085069]
[1748257307807,0.09760115,109580.0,109570.0,1.23085069]
[1748257308007,0.10672673,109580.0,109570.0,1.23085069]
[1748257309456,0.09760115,109580.0,109570.0,1.23085069]
[1748257309733,0.10760115,109580.0,109570.0,1.23085069]
[1748257310905,0.09847574,109580.0,109570.0,1.23085069]
[1748257311117,0.08935041,109580.0,109570.0,1.23085069]
[1748257311323,0.09847582,109580.0,109570.0,1.23085069]
[1748257312516,0.08935041,109580.0,109570.0,1.23085069]
[1748257312717,0.09847582,109580.0,109570.0,1.23085069]
[1748257313266,0.09847574,109580.0,109570.0,1.23085069]
[1748257317489,0.09847574,109580.0,109570.0,0.49901341]
[1748257317942,0.10760115,109580.0,109570.0,1.23085069]
[1748257322052,0.10760115,109580.0,109570.0,1.06798543]
[1748257322550,0.11672665,109580.0,109570.0,1.07711143]
[1748257324144,0.10760115,109580.0,109570.0,1.08623751]
[1748257326299,0.11672665,109580.0,109570.0,1.08623751]
[1748257327116,0.11672665,109580.0,109570.0,1.42623751]